fUSD/lending_fUSD_20250618
["ID","MTS","AMOUNT","RATE_DAILY","PERIOD"]
[366375856,1750219854909,-1405.72,0.00016602,2]
[366375857,1750219854919,-202.11632795,0.00016602,2]
[366375858,1750219854928,-1779.31,0.00016602,2]
[366375859,1750219854937,-1790.04,0.00016602,2]
[366375860,1750219854947,-673.59,0.00016602,2]
[366375861,1750219854957,-490.0,0.00016602,2]
[366375862,1750219854966,-2342.51,0.00016602,2]
[366375863,1750219854976,-151.0,0.00016602,2]
[366375864,1750219854986,-20939.69,0.00016602,2]
[366375865,1750219854996,-700.13,0.00016602,2]
[366375866,1750219855006,-151.0,0.00016602,2]
[366375867,1750219855015,-1153.85,0.00016602,2]
[366375868,1750219855025,-490.0,0.00016602,2]
[366375869,1750219855035,-151.0,0.00016602,2]
[366375870,1750219855044,-287.171088,0.00016602,2]
[366375871,1750219855054,-2906.44,0.00016602,2]
[366375872,1750219855063,-1102.0,0.00016602,2]
[366375873,1750219855073,-490.0,0.00016602,2]
[366375874,1750219855084,-894.21,0.00016602,2]
[366375875,1750219855093,-490.0,0.00016602,2]
[366375876,1750219855103,-628.4,0.00016602,2]
[366375877,1750219855112,-1824.79,0.00016602,2]
[366375878,1750219855122,-490.0,0.00016602,2]
[366375879,1750219855131,-490.0,0.00016602,2]
[366375880,1750219855141,-2447.95,0.00016602,2]
[366375881,1750219855151,-769.0,0.00016602,2]
[366375882,1750219855161,-490.0,0.00016602,2]
[366375883,1750219855171,-1865.66,0.00016602,2]
[366375884,1750219855180,-724.48,0.00016602,2]
[366375885,1750219855189,-4102.01,0.00016602,2]
[366375886,1750219855199,-151.0,0.00016602,2]
[366375887,1750219855209,-1244.89,0.00016602,2]
[366375888,1750219855219,-490.0,0.00016602,2]
[366375889,1750219855228,-490.0,0.00016602,2]
[366375890,1750219855238,-490.0,0.00016602,2]
[366375891,1750219855248,-490.0,0.00016602,2]
[366375892,1750219855257,-490.0,0.00016602,2]
[366375893,1750219855268,-243.874976,0.00016602,2]
[366375894,1750219855278,-490.0,0.00016602,2]
[366375895,1750219855288,-482.50737647,0.00016602,2]
[366375896,1750219855298,-1111.32,0.00016602,2]
[366375897,1750219855308,-513.17574363,0.00016602,2]
[366375898,1750219855318,-490.0,0.00016602,2]
[366375899,1750219855328,-243.874976,0.00016602,2]
[366375900,1750219855338,-945.47,0.00016602,2]
[366375901,1750219855348,-963.84,0.00016602,2]
[366375902,1750219855358,-151.0,0.00016602,2]
[366375903,1750219855368,-490.0,0.00016602,2]
[366375904,1750219855378,-2389.14,0.00016602,2]
[366375905,1750219855388,-490.0,0.00016602,2]
[366375906,1750219855398,-490.0,0.00016602,2]
[366375907,1750219855408,-753.17,0.00016602,2]
[366375908,1750219855418,-735.15,0.00016602,2]
[366375909,1750219855428,-3646.98,0.00016602,2]
[366375910,1750219855437,-615.6,0.00016602,2]
[366375911,1750219855448,-965.28,0.00016602,2]
[366375912,1750219855457,-490.0,0.00016602,2]
[366375913,1750219855467,-151.0,0.00016602,2]
[366375914,1750219855476,-490.0,0.00016602,2]
[366375915,1750219855487,-490.0,0.00016602,2]
[366375916,1750219855497,-617.04,0.00016602,2]
[366375917,1750219855507,-3311.56,0.00016602,2]
[366375918,1750219855517,-1297.48,0.00016602,2]
[366375919,1750219855527,-490.0,0.00016602,2]
[366375920,1750219855537,-490.0,0.00016602,2]
[366375921,1750219855547,-151.520417,0.00016602,2]
[366375922,1750219855556,-490.0,0.00016602,2]
[366375923,1750219855566,-490.0,0.00016602,2]
[366375924,1750219855577,-1267.09,0.00016602,2]
[366375925,1750219855587,-9958.89,0.00016602,2]
[366375926,1750219855597,-3255.24,0.00016602,2]
[366375927,1750219855607,-490.0,0.00016602,2]
[366375928,1750219855617,-490.0,0.00016602,2]
[366375929,1750219855627,-559.89,0.00016602,2]
[366375930,1750219855637,-490.0,0.00016602,2]
[366375931,1750219855647,-165.936621,0.00016602,2]
[366375932,1750219855657,-1094.86,0.00016602,2]
[366375933,1750219855667,-7718.18,0.00016602,2]
[366375934,1750219855677,-861.62,0.00016602,2]
[366375935,1750219855687,-490.0,0.00016602,2]
[366375936,1750219855697,-561.79,0.00016602,2]
[366375937,1750219855707,-573.65,0.00016602,2]
[366375938,1750219855717,-961.69,0.00016602,2]
[366375939,1750219855732,-490.0,0.00016602,2]
[366375940,1750219855741,-1128.41,0.00016602,2]
[366375941,1750219855751,-2022.03,0.00016602,2]
[366375942,1750219855760,-843.56,0.00016602,2]
[366375943,1750219855771,-490.0,0.00016602,2]
[366375944,1750219855781,-490.0,0.00016602,2]
[366375945,1750219855791,-490.0,0.00016602,2]
[366375946,1750219855801,-7074.81,0.00016602,2]
[366375947,1750219855811,-490.0,0.00016602,2]
[366375948,1750219855821,-3915.26,0.00016602,2]
[366375949,1750219855830,-490.0,0.00016602,2]
[366375950,1750219855840,-9887.09,0.00016602,2]
[366375951,1750219855850,-490.0,0.00016602,2]
[366375952,1750219855861,-1244.61,0.00016602,2]
[366375953,1750219855871,-490.0,0.00016602,2]
[366375954,1750219855881,-459.43238104,0.00016602,2]
[366375955,1750219855891,-1468.67,0.00016602,2]
[366375956,1750219855901,-1915.88,0.00016602,2]
[366375957,1750219855911,-213.845425,0.00016602,2]
[366375958,1750219855921,-490.0,0.00016602,2]
[366375959,1750219855931,-526.74,0.00016602,2]
[366375960,1750219855942,-1227.63,0.00016602,2]
[366375961,1750219855952,-845.84,0.00016602,2]
[366375962,1750219855962,-5282.26,0.00016602,2]
[366375963,1750219855971,-1386.4,0.00016602,2]
[366375964,1750219855981,-213.845425,0.00016602,2]
[366375965,1750219855991,-1498.41,0.00016602,2]
[366375966,1750219856000,-908.02,0.00016602,2]
[366375967,1750219856010,-552.49,0.00016602,2]
[366375968,1750219856020,-153.994015,0.00016602,2]
[366375969,1750219856030,-4659.1,0.00016602,2]
[366375970,1750219856040,-581.61,0.00016602,2]
[366375971,1750219856049,-602.72,0.00016602,2]
[366375972,1750219856059,-152.345492,0.00016602,2]
[366375973,1750219856069,-6594.04,0.00016602,2]
[366375974,1750219856078,-1996.36,0.00016602,2]
[366375975,1750219856088,-584.12,0.00016602,2]
[366375976,1750219856098,-1303.79,0.00016602,2]
[366375977,1750219856107,-1311.32,0.00016602,2]
[366375978,1750219856117,-490.0,0.00016602,2]
[366375979,1750219856127,-150.0,0.00016602,2]
[366375980,1750219856136,-166.63313128,0.00016602,2]
[366375981,1750219856146,-490.0,0.00016602,2]
[366375982,1750219856156,-1185.26,0.00016602,2]
[366375983,1750219856165,-490.0,0.00016602,2]
[366375984,1750219856175,-4500.54,0.00016602,2]
[366375985,1750219856185,-2411.47,0.00016602,2]
[366375986,1750219856194,-1683.32,0.00016602,2]
[366375987,1750219856204,-987.88,0.00016602,2]
[366375988,1750219856214,-490.0,0.00016602,2]
[366375989,1750219856224,-796.03,0.00016602,2]
[366375990,1750219856234,-1694.12,0.00016602,2]
[366375991,1750219856244,-605.97,0.00016602,2]
[366375992,1750219856254,-1349.62,0.00016602,2]
[366375993,1750219856263,-176.442679,0.00016602,2]
[366375994,1750219856273,-153.17033521,0.00016602,2]
[366375995,1750219856282,-490.0,0.00016602,2]
[366375996,1750219856292,-21508.69,0.00016602,2]
[366375997,1750219856302,-2799.0,0.00016602,2]
[366375998,1750219856312,-150.0,0.00016602,2]
[366375999,1750219856322,-2211.02,0.00016602,2]
[366376000,1750219856331,-663.82,0.00016602,2]
[366376001,1750219856341,-2311.17,0.00016602,2]
[366376002,1750219856351,-3130.75,0.00016602,2]
[366376003,1750219856361,-490.0,0.00016602,2]
[366376004,1750219856371,-12863.733186,0.00016602,2]
[366376005,1750219856380,-490.0,0.00016602,2]
[366376006,1750219856389,-1760.56,0.00016602,2]
[366376007,1750219856399,-1369.73,0.00016602,2]
[366376008,1750219856409,-490.0,0.00016602,2]
[366376009,1750219856419,-490.0,0.00016602,2]
[366376010,1750219856429,-490.0,0.00016602,2]
[366376011,1750219856439,-913.62,0.00016602,2]
[366376012,1750219856449,-490.0,0.00016602,2]
[366376013,1750219856458,-1256.07,0.00016602,2]
[366376014,1750219856468,-151.0,0.00016602,2]
[366376015,1750219856478,-1767.83,0.00016602,2]
[366376016,1750219856487,-579.13,0.00016602,2]
[366376017,1750219856497,-490.0,0.00016602,2]
[366376018,1750219856506,-490.0,0.00016602,2]
[366376019,1750219856515,-490.0,0.00016602,2]
[366376020,1750219856525,-1282.35,0.00016602,2]
[366376021,1750219856535,-490.0,0.00016602,2]
[366376022,1750219856545,-151.0,0.00016602,2]
[366376023,1750219856554,-1591.18,0.00016602,2]
[366376024,1750219856563,-1144.81,0.00016602,2]
[366376025,1750219856573,-151.0,0.00016624,2]
[366376026,1750219856582,-151.0,0.00016624,2]
[366376027,1750219856592,-151.0,0.00016624,2]
[366376028,1750219856602,-151.0,0.00016624,2]
[366376029,1750219856612,-1247.01674426,0.00016624,2]
[366376030,1750219856621,-151.0,0.00016629,2]
[366376031,1750219856630,-150.0,0.00016629,2]
[366376032,1750219856640,-150.0,0.00016629,2]
[366376033,1750219856649,-150.0,0.0001663,2]
[366376034,1750219856659,-150.0,0.0001663,2]
[366376035,1750219856668,-150.0,0.0001663,2]
[366376036,1750219856678,-150.0,0.0001663,2]
[366376037,1750219856687,-152.11962139,0.0001663,2]
[366376038,1750219856696,-150.77671026,0.0001663,2]
[366376039,1750219856705,-150.0,0.0001663,2]
[366376040,1750219856715,-150.0,0.0001663,2]
[366376041,1750219856727,-150.0,0.0001663,2]
[366376042,1750219856735,-200.3534713,0.0001663,2]
[366376043,1750219856745,-150.0,0.0001663,2]
[366376044,1750219856754,-204.63360222,0.0001663,2]
[366376045,1750219856765,-150.0,0.0001663,2]
[366376046,1750219856774,-153.2539826,0.0001663,2]
[366376047,1750219856784,-150.0,0.0001663,2]
[366376048,1750219856793,-150.49873315,0.0001663,2]
[366376049,1750219856803,-153.5086134,0.0001663,2]
[366376050,1750219856813,-150.89217555,0.0001663,2]
[366376051,1750219856823,-156.50813011,0.00016631,2]
[366376052,1750219856832,-195.15,0.0001664,2]
[366376053,1750219856842,-205.20248437,0.00016657,2]
[366376054,1750219856852,-216.13991443,0.00016657,2]
[366376055,1750219856861,-150.0,0.00016657,2]
[366376056,1750219856870,-255.22464685,0.00016657,2]
[366376057,1750219856880,-150.0,0.00016657,2]
[366376058,1750219856889,-150.0,0.00016657,2]
[366376059,1750219856898,-150.0,0.00016657,2]
[366376060,1750219856907,-158.57334636,0.00016667,2]
[366376061,1750219856917,-1179.667926,0.00016673,2]
[366376062,1750219856926,-151.0,0.00016677,2]
[366376063,1750219857019,-200.0,0.00016685,2]
[366376064,1750219857029,-200.0,0.00016685,2]
[366376065,1750219857038,-150.0,0.00016685,2]
[366376066,1750219857047,-202.02454441,0.00016685,2]
[366376067,1750219857056,-464.2885002,0.00016694,2]
[366376068,1750219857066,-1582.5,0.00016699,2]
[366376069,1750219857075,-150.0,0.00016705,2]
[366376070,1750219857085,-892.0,0.00016711,2]
[366376071,1750219857094,-244.0,0.00016712,2]
[366376072,1750219857104,-187.0,0.00016712,2]
[366376073,1750219857113,-150.0,0.00016718,2]
[366376074,1750219857123,-151.0,0.00016725,2]
[366376075,1750219857133,-150.0,0.00016738,2]
[366376076,1750219857143,-215.95223872,0.0001674,2]
[366376077,1750219857154,-150.0,0.00016752,2]
[366376078,1750219857164,-150.0,0.00016755,2]
[366376079,1750219857174,-150.0,0.00016757,2]
[366376080,1750219857183,-3107.14,0.00016765,2]
[366376081,1750219857193,-490.0,0.00016766,2]
[366376082,1750219857202,-1582.5,0.00016766,2]
[366376083,1750219857211,-1582.5,0.00016766,2]
[366376084,1750219857221,-1582.5,0.00016766,2]
[366376085,1750219857231,-1582.5,0.00016766,2]
[366376086,1750219857241,-3107.14,0.00016766,2]
[366376087,1750219857250,-3107.14,0.00016766,2]
[366376088,1750219857261,-300.0,0.00016766,2]
[366376089,1750219857271,-300.0,0.00016766,2]
[366376090,1750219857280,-300.0,0.00016766,2]
[366376091,1750219857290,-828.691304,0.00016767,2]
[366376092,1750219857300,-490.0,0.00016767,2]
[366376093,1750219857309,-359.37,0.00016767,2]
[366376094,1750219857318,-490.0,0.00016767,2]
[366376095,1750219857328,-490.0,0.00016767,2]
[366376096,1750219857337,-490.0,0.00016767,2]
[366376097,1750219857347,-490.0,0.00016767,2]
[366376098,1750219857357,-490.0,0.00016767,2]
[366376099,1750219857366,-783.57,0.00016767,2]
[366376100,1750219857376,-490.0,0.00016767,2]
[366376101,1750219857386,-599.13,0.00016767,2]
[366376102,1750219857395,-536.74,0.00016767,2]
[366376103,1750219857405,-490.0,0.00016767,2]
[366376104,1750219857415,-490.0,0.00016767,2]
[366376105,1750219857424,-692.07,0.00016767,2]
[366376106,1750219857434,-490.0,0.00016767,2]
[366376107,1750219857443,-694.2,0.00016767,2]
[366376108,1750219857453,-490.0,0.00016767,2]
[366376109,1750219857462,-582.11,0.00016767,2]
[366376110,1750219857472,-514.07,0.00016767,2]
[366376111,1750219857482,-803.78,0.00016767,2]
[366376112,1750219857492,-490.0,0.00016767,2]
[366376113,1750219857503,-490.0,0.00016767,2]
[366376114,1750219857514,-1323.31,0.00016767,2]
[366376115,1750219857524,-946.44,0.00016767,2]
[366376116,1750219857533,-490.0,0.00016767,2]
[366376117,1750219857544,-490.62,0.00016767,2]
[366376118,1750219857554,-490.0,0.00016767,2]
[366376119,1750219857563,-1344.44,0.00016767,2]
[366376120,1750219857572,-490.0,0.00016767,2]
[366376121,1750219857582,-1227.08,0.00016767,2]
[366376122,1750219857591,-490.0,0.00016767,2]
[366376123,1750219857601,-204.94677755,0.00016767,2]
[366376124,1750219857611,-490.0,0.00016767,2]
[366376125,1750219857620,-490.0,0.00016767,2]
[366376126,1750219857630,-490.0,0.00016767,2]
[366376127,1750219857640,-490.0,0.00016767,2]
[366376128,1750219857650,-490.0,0.00016767,2]
[366376129,1750219857660,-490.0,0.00016767,2]
[366376130,1750219857669,-490.0,0.00016767,2]
[366376131,1750219857679,-490.0,0.00016767,2]
[366376132,1750219857689,-512.34,0.00016767,2]
[366376133,1750219857699,-444.07384759,0.00016767,2]
[366376134,1750219857709,-490.0,0.00016767,2]
[366376135,1750219857719,-490.0,0.00016767,2]
[366376136,1750219857732,-490.0,0.00016767,2]
[366376137,1750219857742,-490.0,0.00016767,2]
[366376138,1750219857751,-689.41,0.00016767,2]
[366376139,1750219857761,-490.0,0.00016767,2]
[366376140,1750219857771,-490.0,0.00016767,2]
[366376141,1750219857780,-490.0,0.00016767,2]
[366376142,1750219857789,-490.0,0.00016767,2]
[366376143,1750219857799,-490.0,0.00016767,2]
[366376144,1750219857809,-1498.29,0.00016767,2]
[366376145,1750219857819,-344.34382849,0.00016767,2]
[366376146,1750219857829,-151.0,0.00016767,2]
[366376147,1750219857838,-490.0,0.00016767,2]
[366376148,1750219857847,-490.0,0.00016767,2]
[366376149,1750219857857,-923.47,0.00016767,2]
[366376150,1750219857866,-490.0,0.00016767,2]
[366376151,1750219857877,-490.0,0.00016767,2]
[366376152,1750219857886,-1096.18,0.00016767,2]
[366376153,1750219857896,-791.61,0.00016767,2]
[366376154,1750219857906,-490.0,0.00016767,2]
[366376155,1750219857915,-606.2,0.00016767,2]
[366376156,1750219857925,-465.31222344,0.00016767,2]
[366376157,1750219857934,-490.0,0.00016767,2]
[366376158,1750219857944,-677.0,0.00016767,2]
[366376159,1750219857953,-490.0,0.00016767,2]
[366376160,1750219857962,-493.99,0.00016767,2]
[366376161,1750219857971,-490.0,0.00016767,2]
[366376162,1750219857980,-657.73,0.00016767,2]
[366376163,1750219857990,-959.0,0.00016767,2]
[366376164,1750219857999,-490.0,0.00016767,2]
[366376165,1750219858009,-1085.35,0.00016767,2]
[366376166,1750219858019,-668.67,0.00016767,2]
[366376167,1750219858028,-1641.34,0.00016767,2]
[366376168,1750219858037,-826.71,0.00016767,2]
[366376169,1750219858047,-490.0,0.00016767,2]
[366376170,1750219858056,-581.52,0.00016767,2]
[366376171,1750219858065,-679.08,0.00016767,2]
[366376172,1750219858074,-490.0,0.00016767,2]
[366376173,1750219858084,-490.0,0.00016767,2]
[366376174,1750219858093,-490.0,0.00016767,2]
[366376175,1750219858103,-704.99,0.00016767,2]
[366376176,1750219858113,-1451.735,0.00016767,2]
[366376177,1750219858122,-264.374,0.00016767,2]
[366376178,1750219858132,-1154.79,0.00016767,2]
[366376179,1750219858142,-152.493323,0.00016767,2]
[366376180,1750219858151,-490.0,0.00016767,2]
[366376181,1750219858161,-260.51643508,0.00016767,2]
[366376182,1750219858170,-490.0,0.00016767,2]
[366376183,1750219858179,-797.49,0.00016767,2]
[366376184,1750219858189,-490.0,0.00016767,2]
[366376185,1750219858199,-490.0,0.00016767,2]
[366376186,1750219858208,-810.13,0.00016767,2]
[366376187,1750219858217,-1247.03,0.00016767,2]
[366376188,1750219858227,-536.79625191,0.00016767,2]
[366376189,1750219858236,-490.0,0.00016767,2]
[366376190,1750219858245,-636.21,0.00016767,2]
[366376191,1750219858256,-490.0,0.00016767,2]
[366376192,1750219858265,-490.0,0.00016767,2]
[366376193,1750219858275,-942.77,0.00016767,2]
[366376194,1750219858285,-1208.52,0.00016767,2]
[366376195,1750219858294,-545.07,0.00016767,2]
[366376196,1750219858304,-538.89,0.00016767,2]
[366376197,1750219858313,-490.0,0.00016767,2]
[366376198,1750219858323,-490.0,0.00016767,2]
[366376199,1750219858332,-490.0,0.00016767,2]
[366376200,1750219858342,-490.0,0.00016767,2]
[366376201,1750219858352,-680.48,0.00016767,2]
[366376202,1750219858362,-1033.96,0.00016767,2]
[366376203,1750219858372,-490.0,0.00016767,2]
[366376204,1750219858381,-1289.15,0.00016767,2]
[366376205,1750219858391,-490.0,0.00016767,2]
[366376206,1750219858401,-704.44,0.00016767,2]
[366376207,1750219858410,-817.9,0.00016767,2]
[366376208,1750219858420,-1087.91,0.00016767,2]
[366376209,1750219858429,-490.0,0.00016767,2]
[366376210,1750219858439,-676.11,0.00016767,2]
[366376211,1750219858449,-551.32,0.00016767,2]
[366376212,1750219858459,-490.0,0.00016767,2]
[366376213,1750219858468,-490.0,0.00016767,2]
[366376214,1750219858477,-490.0,0.00016767,2]
[366376215,1750219858485,-490.0,0.00016767,2]
[366376216,1750219858494,-490.0,0.00016767,2]
[366376217,1750219858503,-490.0,0.00016767,2]
[366376218,1750219858513,-491.18,0.00016767,2]
[366376219,1750219858523,-1115.52,0.00016767,2]
[366376220,1750219858533,-490.0,0.00016767,2]
[366376221,1750219858542,-490.0,0.00016767,2]
[366376222,1750219858551,-495.81,0.00016767,2]
[366376223,1750219858560,-490.0,0.00016767,2]
[366376224,1750219858570,-289.21,0.00016767,2]
[366376225,1750219858579,-490.0,0.00016767,2]
[366376226,1750219858588,-490.0,0.00016767,2]
[366376227,1750219858598,-490.0,0.00016767,2]
[366376228,1750219858607,-490.0,0.00016767,2]
[366376229,1750219858617,-490.0,0.00016767,2]
[366376230,1750219858626,-490.0,0.00016767,2]
[366376231,1750219858636,-490.0,0.00016767,2]
[366376232,1750219858645,-490.0,0.00016767,2]
[366376233,1750219858655,-539.19,0.00016767,2]
[366376234,1750219858665,-632.96,0.00016767,2]
[366376235,1750219858674,-490.0,0.00016767,2]
[366376236,1750219858683,-490.0,0.00016767,2]
[366376237,1750219858693,-1078.26,0.00016767,2]
[366376238,1750219858703,-490.0,0.00016767,2]
[366376239,1750219858712,-619.24,0.00016767,2]
[366376240,1750219858722,-1013.14,0.00016767,2]
[366376241,1750219858734,-490.0,0.00016767,2]
[366376242,1750219858743,-490.0,0.00016767,2]
[366376243,1750219858754,-602.32612239,0.00016767,2]
[366376244,1750219858764,-490.0,0.00016767,2]
[366376245,1750219858776,-300.0,0.00016767,2]
[366376246,1750219858786,-696.28,0.00016767,2]
[366376247,1750219858796,-884.55,0.00016767,2]
[366376248,1750219858807,-490.0,0.00016767,2]
[366376249,1750219858817,-490.0,0.00016767,2]
[366376250,1750219858826,-978.75,0.00016767,2]
[366376251,1750219858836,-917.1,0.00016767,2]
[366376252,1750219858846,-490.0,0.00016767,2]
[366376253,1750219858857,-490.0,0.00016767,2]
[366376254,1750219858866,-490.0,0.00016767,2]
[366376255,1750219858876,-698.59,0.00016767,2]
[366376256,1750219858885,-749.72,0.00016767,2]
[366376257,1750219858895,-490.0,0.00016767,2]
[366376258,1750219858904,-490.0,0.00016767,2]
[366376259,1750219858914,-490.0,0.00016767,2]
[366376260,1750219858923,-260.13003643,0.00016767,2]
[366376261,1750219858933,-151.0,0.00016767,2]
[366376262,1750219858943,-809.38,0.00016767,2]
[366376263,1750219858952,-611.98,0.00016767,2]
[366376264,1750219858961,-490.0,0.00016767,2]
[366376265,1750219858970,-490.0,0.00016767,2]
[366376266,1750219858980,-1434.56,0.00016767,2]
[366376267,1750219858989,-151.0,0.00016767,2]
[366376268,1750219858998,-490.0,0.00016767,2]
[366376269,1750219859008,-490.0,0.00016767,2]
[366376270,1750219859018,-490.0,0.00016767,2]
[366376271,1750219859028,-646.25,0.00016767,2]
[366376272,1750219859037,-490.0,0.00016767,2]
[366376273,1750219859047,-490.0,0.00016767,2]
[366376274,1750219859056,-522.81,0.00016767,2]
[366376275,1750219859065,-733.24,0.00016767,2]
[366376276,1750219859075,-627.62,0.00016767,2]
[366376277,1750219859084,-1268.82,0.00016767,2]
[366376278,1750219859093,-848.35,0.00016767,2]
[366376279,1750219859104,-1756.93,0.00016767,2]
[366376280,1750219859114,-1483.43,0.00016767,2]
[366376281,1750219859123,-490.0,0.00016767,2]
[366376282,1750219859132,-490.0,0.00016767,2]
[366376283,1750219859142,-1754.88,0.00016767,2]
[366376284,1750219859152,-553.97,0.00016767,2]
[366376285,1750219859162,-490.0,0.00016767,2]
[366376286,1750219859171,-490.0,0.00016767,2]
[366376287,1750219859180,-490.0,0.00016767,2]
[366376288,1750219859190,-490.0,0.00016767,2]
[366376289,1750219859199,-490.0,0.00016767,2]
[366376290,1750219859209,-785.51,0.00016767,2]
[366376291,1750219859218,-490.0,0.00016767,2]
[366376292,1750219859228,-490.0,0.00016767,2]
[366376293,1750219859237,-774.68,0.00016767,2]
[366376294,1750219859247,-490.0,0.00016767,2]
[366376295,1750219859257,-1119.83,0.00016767,2]
[366376296,1750219859267,-490.0,0.00016767,2]
[366376297,1750219859276,-591.91,0.00016767,2]
[366376298,1750219859286,-784.39,0.00016767,2]
[366376299,1750219859295,-577.1,0.00016767,2]
[366376300,1750219859304,-490.0,0.00016767,2]
[366376301,1750219859314,-490.0,0.00016767,2]
[366376302,1750219859323,-935.27,0.00016767,2]
[366376303,1750219859333,-498.46615443,0.00016767,2]
[366376304,1750219859342,-1293.32,0.00016767,2]
[366376305,1750219859352,-490.0,0.00016767,2]
[366376306,1750219859362,-206.172782,0.00016767,2]
[366376307,1750219859372,-490.0,0.00016767,2]
[366376308,1750219859381,-490.0,0.00016767,2]
[366376309,1750219859391,-485.67993242,0.00016767,2]
[366376310,1750219859400,-490.0,0.00016767,2]
[366376311,1750219859409,-1082.29,0.00016767,2]
[366376312,1750219859419,-490.0,0.00016767,2]
[366376313,1750219859428,-490.0,0.00016767,2]
[366376314,1750219859437,-897.18,0.00016767,2]
[366376315,1750219859447,-1160.83,0.00016767,2]
[366376316,1750219859458,-437.58440405,0.00016767,2]
[366376317,1750219859467,-683.62,0.00016767,2]
[366376318,1750219859477,-490.0,0.00016767,2]
[366376319,1750219859486,-490.0,0.00016767,2]
[366376320,1750219859496,-614.22,0.00016767,2]
[366376321,1750219859505,-500.0,0.00016767,2]
[366376322,1750219859515,-500.0,0.00016767,2]
[366376323,1750219859525,-500.0,0.00016767,2]
[366376324,1750219859535,-500.0,0.00016767,2]
[366376325,1750219859545,-500.0,0.00016767,2]
[366376326,1750219859554,-490.0,0.00016767,2]
[366376327,1750219859564,-500.0,0.00016767,2]
[366376328,1750219859577,-490.0,0.00016767,2]
[366376329,1750219859587,-500.0,0.00016767,2]
[366376330,1750219859598,-500.0,0.00016767,2]
[366376331,1750219859607,-500.0,0.00016767,2]
[366376332,1750219859617,-500.0,0.00016767,2]
[366376333,1750219859626,-490.0,0.00016767,2]
[366376334,1750219859635,-500.0,0.00016767,2]
[366376335,1750219859644,-500.0,0.00016767,2]
[366376336,1750219859653,-500.0,0.00016767,2]
[366376337,1750219859663,-1549.11,0.00016767,2]
[366376338,1750219859672,-500.0,0.00016767,2]
[366376339,1750219859681,-500.0,0.00016767,2]
[366376340,1750219859690,-490.0,0.00016767,2]
[366376341,1750219859700,-500.0,0.00016767,2]
[366376342,1750219859711,-500.0,0.00016767,2]
[366376343,1750219859722,-500.0,0.00016767,2]
[366376344,1750219859735,-490.0,0.00016767,2]
[366376345,1750219859745,-500.0,0.00016767,2]
[366376346,1750219859755,-490.0,0.00016767,2]
[366376347,1750219859764,-500.0,0.00016767,2]
[366376348,1750219859773,-500.0,0.00016767,2]
[366376349,1750219859783,-500.0,0.00016767,2]
[366376350,1750219859793,-496.95261252,0.00016767,2]
[366376351,1750219859803,-534.42,0.00016767,2]
[366376352,1750219859812,-500.0,0.00016767,2]
[366376353,1750219859822,-500.0,0.00016767,2]
[366376354,1750219859831,-500.0,0.00016767,2]
[366376355,1750219859841,-500.0,0.00016767,2]